bitfinex-derivatives/quotes_BTCF0:USTF0_20241023
["timestamp","ask_amount","ask_price","bid_price","bid_amount"]
[1729713777914,0.27449136,66416.0,66415.0,0.07537]
[1729713778312,0.19912236,66416.0,66406.0,0.1341]
[1729713778518,0.17,66422.0,66408.0,0.075378]
[1729713778519,0.17,66409.0,66408.0,0.075378]
[1729713779315,0.29067931,66430.0,66406.0,0.1341]
[1729713779316,0.17,66413.0,66406.0,0.1341]
[1729713779511,0.17,66409.0,66406.0,0.075379]
[1729713779712,0.17,66409.0,66402.0,0.1374]
[1729713779713,0.075384,66404.0,66403.0,0.075384]
[1729713779908,0.245384,66404.0,66403.0,0.075384]
[1729713780612,0.17,66404.0,66403.0,0.075384]
[1729713781205,0.075379,66407.0,66402.0,0.1374]
[1729713781408,0.17,66406.0,66402.0,0.1374]
[1729713781909,0.17,66406.0,66405.0,0.075382]
[1729713784309,0.27450629,66406.0,66405.0,0.075382]
[1729713784509,0.27450635,66406.0,66405.0,0.075382]
[1729713784706,0.07538,66406.0,66405.0,0.075382]
[1729713784917,0.24538,66406.0,66405.0,0.075382]
[1729713785512,0.24538,66406.0,66405.0,0.25762014]
[1729713785710,0.24538,66406.0,66405.0,0.075382]
[1729713786317,0.17,66406.0,66405.0,0.075382]
[1729713786522,0.00076,66419.0,66405.0,0.27729734]
[1729713786716,0.245366,66419.0,66418.0,0.075365]
[1729713788318,0.17,66426.0,66418.0,0.17]
[1729713788514,0.245349,66434.0,66423.0,0.17]
[1729713788712,0.07535,66433.0,66432.0,0.075351]
[1729713789111,0.17,66434.0,66432.0,0.075351]
[1729713789332,0.17,66434.0,66433.0,0.07535]
[1729713789715,0.17,66434.0,66429.0,0.05962961]
[1729713789916,0.261,66440.0,66431.0,0.075351]
[1729713790112,0.075348,66435.0,66432.0,0.075351]
[1729713790513,0.075348,66435.0,66427.0,0.05962961]
[1729713790819,0.17,66433.0,66432.0,0.075351]
[1729713792723,0.24535,66433.0,66432.0,0.075351]
[1729713794221,0.17,66433.0,66423.0,0.0162523]
[1729713794416,0.17,66424.0,66422.0,0.075361]
[1729713794622,0.17,66423.0,66417.0,0.1358]
[1729713794823,0.17,66418.0,66417.0,0.1358]
[1729713795021,0.17,66418.0,66417.0,0.211168]
[1729713797019,0.245361,66424.0,66417.0,0.1358]
[1729713797219,0.17,66428.0,66427.0,0.075357]
[1729713797929,0.17,66435.0,66426.0,0.17]
[1729713798127,0.261,66440.0,66423.0,0.17]
[1729713798128,0.17,66432.0,66423.0,0.17]
[1729713798428,0.075352,66431.0,66430.0,0.075353]
[1729713799425,0.075356,66428.0,66426.0,0.075357]
[1729713799726,0.19911769,66427.0,66426.0,0.075358]
[1729713800124,0.19911769,66427.0,66421.0,0.075363]
[1729713800314,0.17,66419.0,66418.0,0.075367]
[1729713801222,0.27448519,66419.0,66418.0,0.075367]
[1729713801927,0.19911919,66419.0,66418.0,0.075367]
[1729713802723,0.02911919,66419.0,66418.0,0.245367]
[1729713803027,0.13521537,66441.0,66418.0,0.17]
[1729713803326,0.17,66452.0,66448.0,0.075332]
[1729713803516,0.17,66452.0,66426.0,0.07761447]
[1729713803517,0.17,66449.0,66430.0,0.075352]
[1729713803717,0.17,66440.0,66435.0,0.075348]
[1729713803923,0.17,66443.0,66436.0,0.1373]
[1729713804117,0.17,66440.0,66439.0,0.075343]
[1729713804523,0.245342,66440.0,66439.0,0.075343]
[1729713804723,0.27445281,66440.0,66439.0,0.075343]
[1729713805225,0.27445281,66440.0,66434.0,0.211348]
[1729713805226,0.075348,66435.0,66434.0,0.211348]
[1729713805623,0.10446198,66435.0,66434.0,0.211348]
[1729713805823,0.10446198,66435.0,66434.0,0.136]
[1729713806025,0.075355,66430.0,66429.0,0.075354]
[1729713806225,0.27447091,66430.0,66429.0,0.075354]
[1729713807123,0.19911591,66430.0,66429.0,0.075354]
[1729713807329,0.02911591,66430.0,66429.0,0.075354]
[1729713807831,0.17,66437.0,66428.0,0.17]
[1729713808144,0.075348,66436.0,66435.0,0.075347]
[1729713809028,0.075341,66441.0,66440.0,0.07534]
[1729713809223,0.17,66441.0,66428.0,0.17]
[1729713809429,0.17,66435.0,66434.0,0.075349]
[1729713810238,0.17,66446.0,66431.0,0.17]
[1729713810438,0.17,66446.0,66445.0,0.075336]
[1729713810937,0.245335,66446.0,66445.0,0.075336]
[1729713811132,0.18654479,66446.0,66439.0,0.2794]
[1729713811340,0.07534,66442.0,66441.0,0.075341]
[1729713811851,0.4108,66455.0,66434.0,0.075349]
[1729713812033,0.075348,66435.0,66434.0,0.075349]
[1729713813040,0.1305,66441.0,66426.0,0.01844579]
[1729713813237,0.17,66433.0,66432.0,0.075351]
[1729713814539,0.17,66437.0,66436.0,0.075346]
[1729713815236,0.075342,66440.0,66439.0,0.075343]
[1729713815931,0.1865214,66442.0,66441.0,0.075341]
[1729713815932,0.17,66442.0,66441.0,0.075341]
[1729713816738,0.075344,66438.0,66436.0,0.075345]
[1729713816932,0.17,66437.0,66436.0,0.075345]
[1729713817132,0.245345,66437.0,66436.0,0.075345]
[1729713817638,0.17,66437.0,66426.0,0.01844579]
[1729713817828,0.17,66429.0,66428.0,0.075356]
[1729713818235,0.17,66436.0,66426.0,0.17225747]
[1729713818435,0.17,66436.0,66435.0,0.075348]
[1729713819542,0.245346,66436.0,66435.0,0.075348]
[1729713820140,0.17,66440.0,66429.0,0.17]
[1729713820336,0.17,66440.0,66426.0,0.00225747]
[1729713820337,0.075343,66440.0,66439.0,0.075343]
[1729713820539,0.07534,66442.0,66441.0,0.07534]
[1729713821236,0.01675882,66446.0,66438.0,0.17]
[1729713821444,0.075338,66444.0,66439.0,0.075343]
[1729713821631,0.075339,66443.0,66442.0,0.075339]
[1729713822139,0.17,66444.0,66443.0,0.075339]
[1729713822333,0.075331,66450.0,66448.0,0.075332]
[1729713822533,0.17,66450.0,66448.0,0.075332]
[1729713822843,0.24166274,66449.0,66448.0,0.04926915]
[1729713823040,0.075336,66446.0,66444.0,0.075336]
[1729713823344,0.18761314,66445.0,66444.0,0.075336]
[1729713824152,0.18761314,66445.0,66420.0,0.14076]
[1729713824153,0.28227983,66445.0,66420.0,0.14076]
[1729713824440,0.32038581,66431.0,66422.0,0.4101]
[1729713824634,0.075354,66429.0,66428.0,0.075355]
[1729713824835,0.18763383,66429.0,66428.0,0.075355]
[1729713825234,0.33805444,66429.0,66428.0,0.075355]
[1729713825634,0.18763383,66429.0,66428.0,0.075355]
[1729713826649,0.11227983,66429.0,66428.0,0.075355]
[1729713826857,0.11227983,66429.0,66427.0,0.17]
[1729713827039,0.39577429,66430.0,66429.0,0.075354]
[1729713827440,0.43268691,66430.0,66429.0,0.075354]
[1729713827639,0.5080713,66430.0,66429.0,0.075354]
[1729713829246,0.2627183,66430.0,66429.0,0.075354]
[1729713829736,0.15042129,66430.0,66429.0,0.075354]
[1729713831542,0.16544688,66433.0,66432.0,0.075351]
[1729713831749,0.245339,66443.0,66442.0,0.075339]
[1729713831940,0.245339,66443.0,66433.0,0.075348]
[1729713831941,0.075351,66434.0,66433.0,0.075348]
[1729713832137,0.245351,66434.0,66433.0,0.075348]
[1729713832944,0.075351,66434.0,66433.0,0.075348]
[1729713833251,0.245351,66434.0,66433.0,0.075348]
[1729713834446,0.075351,66434.0,66433.0,0.075348]
[1729713834644,0.287,66441.0,66433.0,0.04478225]
[1729713834849,0.075345,66440.0,66439.0,0.075343]
[1729713835349,0.075348,66436.0,66435.0,0.075347]
[1729713835550,0.245348,66436.0,66435.0,0.075347]
[1729713835853,0.17,66436.0,66435.0,0.075347]
[1729713836749,0.245346,66436.0,66435.0,0.075347]
[1729713836943,0.17,66436.0,66435.0,0.075347]
[1729713838951,0.37604,66442.0,66438.0,0.075344]
[1729713839152,0.075343,66440.0,66439.0,0.075341]
[1729713839554,0.10445771,66440.0,66439.0,0.075341]
[1729713839857,0.27015406,66440.0,66439.0,0.075341]
[1729713840059,0.38244255,66440.0,66439.0,0.075341]
[1729713840258,0.2167462,66440.0,66439.0,0.075341]
[1729713840558,0.35231266,66440.0,66439.0,0.075341]
[1729713841258,0.35232217,66440.0,66439.0,0.075341]
[1729713841658,0.32320746,66440.0,66439.0,0.075341]
[1729713841957,0.24786446,66440.0,66439.0,0.075341]
[1729713842256,0.24786243,66440.0,66439.0,0.075341]
[1729713842654,0.24786139,66440.0,66439.0,0.075341]
[1729713842957,0.49320339,66440.0,66439.0,0.075341]
[1729713843147,0.35762945,66440.0,66439.0,0.075341]
[1729713843347,0.18762945,66440.0,66439.0,0.075341]
[1729713843858,0.35762945,66440.0,66439.0,0.075341]
[1729713844056,0.49320339,66440.0,66439.0,0.075341]
[1729713844365,0.49320339,66440.0,66431.0,0.075352]
[1729713844366,0.28228745,66440.0,66431.0,0.075352]
[1729713844558,0.075349,66436.0,66435.0,0.075346]
[1729713844758,0.23602392,66436.0,66427.0,0.1235]
[1729713844963,0.075351,66433.0,66432.0,0.075349]
[1729713845162,0.14137492,66433.0,66432.0,0.075349]
[1729713845359,0.075351,66433.0,66432.0,0.13497861]
[1729713845659,0.075351,66433.0,66432.0,0.075349]
[1729713847259,0.075351,66433.0,66432.0,0.13497861]
[1729713847461,0.075351,66433.0,66432.0,0.075349]
[1729713847858,0.075351,66433.0,66432.0,0.12012466]
[1729713849456,0.075346,66437.0,66436.0,0.075344]
[1729713849657,0.075342,66440.0,66439.0,0.07534]
[1729713850071,0.17,66443.0,66436.0,0.29012188]
[1729713850256,0.075339,66443.0,66442.0,0.075336]
[1729713850562,0.245339,66443.0,66442.0,0.075336]
[1729713851562,0.075343,66439.0,66438.0,0.12012088]
[1729713851770,0.075343,66439.0,66438.0,0.075343]
[1729713851771,0.245343,66439.0,66438.0,0.075343]
[1729713852354,0.49319573,66439.0,66438.0,0.075343]
[1729713852755,0.3576277,66439.0,66438.0,0.075343]
[1729713854058,0.24788657,66439.0,66438.0,0.075343]
[1729713854362,0.06602231,66439.0,66438.0,0.075343]
[1729713854562,0.1506294,66452.0,66450.0,0.075331]
[1729713854563,0.07533,66451.0,66450.0,0.075331]
[1729713854766,0.04625713,66451.0,66450.0,0.075331]
[1729713855958,0.13552715,66451.0,66450.0,0.075331]
[1729713856163,0.18178428,66451.0,66450.0,0.075331]
[1729713856363,0.04625713,66451.0,66450.0,0.075331]
[1729713856666,0.29158613,66451.0,66450.0,0.075331]
[1729713857262,0.29158613,66451.0,66444.0,0.1282]
[1729713857462,0.17,66445.0,66438.0,0.1312]
[1729713857659,0.17,66445.0,66444.0,0.075337]
[1729713857660,0.245338,66445.0,66444.0,0.075337]
[1729713859569,0.075338,66445.0,66444.0,0.075337]
[1729713859965,0.075334,66448.0,66447.0,0.075334]
[1729713860161,0.04625552,66448.0,66447.0,0.075334]
[1729713860365,0.1506294,66453.0,66452.0,0.075328]
[1729713860366,0.075328,66453.0,66452.0,0.075328]
[1729713861061,0.17,66454.0,66444.0,0.04477788]
[1729713861261,0.17,66446.0,66445.0,0.075336]
[1729713861461,0.01663279,66460.0,66447.0,0.075334]
[1729713861664,0.07533,66451.0,66450.0,0.075328]
[1729713865872,0.1251,66461.0,66450.0,0.17]
[1729713866071,0.075321,66459.0,66458.0,0.07532]
[1729713867065,0.17,66459.0,66454.0,0.075326]
[1729713867266,0.17,66455.0,66454.0,0.075326]
[1729713868769,0.245325,66455.0,66454.0,0.075326]
[1729713869265,0.07533,66451.0,66450.0,0.075329]
[1729713869466,0.17,66451.0,66442.0,0.2394]
[1729713869659,0.17,66443.0,66438.0,0.1312]
[1729713869864,0.245339,66443.0,66442.0,0.07534]
[1729713873462,0.245339,66443.0,66430.0,0.075353]
[1729713873463,0.075352,66433.0,66432.0,0.075351]
[1729713873761,0.07534,66442.0,66428.0,0.00225801]
[1729713873762,0.075354,66429.0,66428.0,0.00225801]
[1729713873963,0.245354,66429.0,66428.0,0.00225801]
[1729713874170,0.245354,66429.0,66428.0,0.07761401]
[1729713874471,0.245354,66429.0,66428.0,0.00225801]
[1729713875371,0.35765569,66429.0,66428.0,0.00225801]
[1729713875969,0.35765569,66429.0,66428.0,0.075356]
[1729713876366,0.50796673,66429.0,66428.0,0.075356]
[1729713876667,0.35765569,66429.0,66428.0,0.075356]
[1729713877262,0.41172094,66429.0,66428.0,0.075356]
[1729713877467,0.41172094,66429.0,66422.0,0.2404]
[1729713877468,0.075358,66426.0,66422.0,0.2404]
[1729713877669,0.22564367,66426.0,66425.0,0.075359]
[1729713877864,0.33794536,66426.0,66425.0,0.075359]
[1729713878066,0.075361,66423.0,66421.0,0.075363]
[1729713878265,0.06603229,66422.0,66421.0,0.075363]
[1729713878969,0.02911877,66422.0,66421.0,0.17]
[1729713879175,0.02911877,66422.0,66421.0,1.467043]
[1729713879176,0.03691247,66422.0,66421.0,1.467043]
[1729713879390,0.13526048,66441.0,66422.0,0.075361]
[1729713879578,0.075342,66441.0,66436.0,0.17]
[1729713879770,0.075342,66441.0,66440.0,0.075342]
[1729713879971,0.04625967,66441.0,66440.0,0.075342]
[1729713880478,0.12160067,66441.0,66440.0,0.075342]
[1729713881379,0.04625967,66441.0,66440.0,0.075342]
[1729713882473,0.17,66442.0,66440.0,0.075342]
[1729713883078,0.17,66442.0,66436.0,0.075346]
[1729713883382,0.075343,66439.0,66438.0,0.075344]
[1729713883969,0.17,66442.0,66434.0,0.01606008]
[1729713884172,0.17,66442.0,66439.0,0.075342]
[1729713884375,0.17,66442.0,66432.0,0.04477788]
[1729713884376,0.17,66442.0,66436.0,0.17]
[1729713884689,0.24534,66442.0,66441.0,0.075341]
[1729713886679,0.01618292,66448.0,66436.0,0.17]
[1729713886680,0.17,66447.0,66436.0,0.17]
[1729713886891,0.36154,66454.0,66445.0,0.075336]
[1729713886892,0.075336,66446.0,66445.0,0.075336]
[1729713888180,0.075336,66446.0,66443.0,0.17]
[1729713888181,0.17,66448.0,66439.0,0.17]
[1729713888380,0.17,66448.0,66442.0,0.075339]
[1729713888579,0.17,66448.0,66436.0,0.23111427]
[1729713888781,0.075336,66446.0,66440.0,0.075342]
[1729713889082,0.075336,66446.0,66444.0,0.075337]
[1729713889484,0.075336,66446.0,66445.0,0.075336]
[1729713890387,0.17,66448.0,66440.0,0.1233]
[1729713890579,0.37800402,66454.0,66440.0,0.198641]
[1729713890580,0.075341,66441.0,66440.0,0.198641]
[1729713890771,0.1413559,66441.0,66440.0,0.198641]
[1729713891771,0.11224544,66441.0,66440.0,0.198641]
[1729713892179,0.075341,66441.0,66440.0,0.198641]
[1729713892379,0.1413593,66441.0,66440.0,0.075341]
[1729713892583,0.075345,66438.0,66437.0,0.075345]
[1729713896970,0.24534,66442.0,66441.0,0.075341]
[1729713897385,0.07534,66442.0,66441.0,0.075341]
[1729713898582,0.075335,66447.0,66446.0,0.075334]
[1729713900578,0.17,66453.0,66446.0,0.17]
[1729713900886,0.075327,66453.0,66452.0,0.075327]
[1729713901488,0.245327,66453.0,66452.0,0.075327]
[1729713902184,0.075332,66449.0,66448.0,0.075332]
[1729713902388,0.245332,66449.0,66448.0,0.075332]
[1729713902590,0.17,66449.0,66448.0,0.075332]
[1729713903786,0.075336,66446.0,66445.0,0.075333]
[1729713904682,0.075336,66445.0,66444.0,0.09136307]
[1729713904985,0.31134831,66445.0,66444.0,0.09136307]
[1729713905287,1.59745129,66445.0,66407.0,0.00108]
[1729713905491,0.17,66410.0,66409.0,0.075377]
[1729713905691,0.02911921,66410.0,66409.0,0.075377]
[1729713905891,0.06603917,66410.0,66404.0,0.17]
[1729713906198,0.02911921,66409.0,66404.0,0.17]
[1729713906393,0.02911921,66408.0,66407.0,0.075379]
[1729713906599,0.02911921,66408.0,66400.0,0.17]
[1729713906889,0.17,66414.0,66406.0,0.07538]
[1729713906890,0.02912465,66407.0,66406.0,0.07538]
[1729713907502,0.06604652,66407.0,66406.0,0.07538]
[1729713907790,0.0291244,66407.0,66406.0,0.07538]
[1729713909792,0.0291244,66407.0,66406.0,0.09191307]
[1729713910496,0.1045034,66407.0,66406.0,0.09191307]
[1729713910685,0.0291244,66407.0,66406.0,0.09191307]
[1729713911985,0.1045034,66407.0,66406.0,0.09191307]
[1729713912181,0.10450379,66407.0,66406.0,0.09191307]
[1729713912490,0.07539,66399.0,66398.0,0.075389]
[1729713912887,0.10451933,66399.0,66398.0,0.075389]
[1729713913090,0.075391,66399.0,66398.0,0.075389]
[1729713913299,0.15484137,66401.0,66398.0,0.01668872]
[1729713913483,0.15484137,66401.0,66400.0,0.075387]
[1729713914487,0.23022737,66401.0,66400.0,0.13483758]
[1729713915186,0.23022737,66401.0,66400.0,0.075387]
[1729713915986,0.23022737,66401.0,66400.0,0.13483758]
[1729713916186,0.1774089,66401.0,66400.0,0.13479587]
[1729713916393,0.1774089,66401.0,66400.0,0.075387]
[1729713921287,0.1020229,66401.0,66400.0,0.075387]
[1729713921489,0.1774089,66401.0,66400.0,0.075387]
[1729713923788,0.1228,66406.0,66400.0,0.075387]
[1729713923990,0.17,66408.0,66407.0,0.075379]
[1729713926401,0.245378,66408.0,66407.0,0.075379]
[1729713928695,0.245378,66408.0,66407.0,0.08856419]
[1729713931089,0.17,66408.0,66407.0,0.08856419]
[1729713932602,0.075368,66419.0,66418.0,0.075365]
[1729713933290,0.1295315,66424.0,66422.0,0.075361]
[1729713933494,0.075362,66423.0,66422.0,0.075361]
[1729713933705,0.245362,66423.0,66422.0,0.075361]
[1729713934299,0.17,66423.0,66422.0,0.075361]
[1729713935400,0.17,66423.0,66422.0,0.08845641]
[1729713936303,0.245359,66426.0,66422.0,0.08845641]
[1729713936605,0.17,66431.0,66430.0,0.075353]
[1729713936800,0.17,66431.0,66430.0,0.12011504]
[1729713936801,0.245353,66431.0,66430.0,0.12011504]
[1729713936997,0.245353,66431.0,66430.0,0.075353]
[1729713937206,0.12606,66434.0,66433.0,0.07535]
[1729713937502,0.1253,66434.0,66433.0,0.07535]
[1729713937705,0.2953,66434.0,66433.0,0.07535]
[1729713938704,0.2953,66434.0,66433.0,0.12005482]
[1729713939097,0.370649,66434.0,66433.0,0.12005482]
[1729713939297,0.370649,66434.0,66433.0,0.07535]
[1729713940303,0.2953,66434.0,66430.0,0.05790319]
[1729713940498,0.245352,66431.0,66430.0,0.08855037]
[1729713941704,0.245352,66431.0,66430.0,0.01319837]
[1729713941905,0.17,66431.0,66426.0,0.04470482]
[1729713942102,0.245357,66427.0,66426.0,0.075358]
[1729713942708,0.245357,66427.0,66426.0,0.12006282]
[1729713943099,0.31138777,66427.0,66426.0,0.075358]
[1729713943502,0.31138777,66427.0,66418.0,0.1232]
[1729713943503,0.23603077,66427.0,66418.0,0.1232]
[1729713943698,0.245363,66423.0,66422.0,0.075361]
[1729713943904,0.27448046,66423.0,66422.0,0.075361]
[1729713945102,0.27448208,66423.0,66422.0,0.075361]
[1729713945301,0.36911908,66423.0,66413.0,0.1221]
[1729713945501,0.245371,66417.0,66416.0,0.075368]
[1729713945703,0.27449008,66417.0,66416.0,0.075368]
[1729713946008,0.31140868,66417.0,66416.0,0.075368]
[1729713946199,0.10449008,66417.0,66416.0,0.075368]
[1729713946801,0.14140921,66417.0,66416.0,0.075368]
[1729713947001,0.10449008,66417.0,66416.0,0.075368]
[1729713947396,0.14140906,66417.0,66416.0,0.075368]
[1729713947594,0.14140853,66417.0,66416.0,0.075368]
[1729713949001,0.31140853,66417.0,66416.0,0.075368]
[1729713949313,0.075373,66414.0,66413.0,0.075372]
[1729713949511,0.075377,66410.0,66409.0,0.075376]
[1729713949805,0.3114185,66410.0,66409.0,0.075376]
[1729713950206,0.245377,66410.0,66409.0,0.075376]
[1729713950409,0.17,66410.0,66409.0,0.075376]
[1729713950707,0.245373,66413.0,66412.0,0.075374]
[1729713952602,0.245373,66413.0,66412.0,0.1201096]
[1729713954904,0.245373,66413.0,66412.0,0.075374]
[1729713956614,0.07537,66416.0,66415.0,0.07537]
[1729713957009,0.1163,66419.0,66415.0,0.07537]
[1729713957010,0.191666,66419.0,66418.0,0.075367]
[1729713960608,0.075367,66418.0,66417.0,0.04473569]
[1729713960812,0.245367,66418.0,66417.0,0.04473569]
[1729713961023,0.245367,66418.0,66417.0,0.12010369]
[1729713961817,0.191666,66419.0,66418.0,0.075367]
[1729713963317,0.075367,66418.0,66417.0,0.04473569]
[1729713963513,0.245367,66418.0,66417.0,0.04473569]
[1729713964211,0.245367,66418.0,66414.0,0.04473569]
[1729713964412,0.07537,66415.0,66414.0,0.12010669]
[1729713965208,0.07537,66415.0,66414.0,0.04473569]
[1729713966514,0.07537,66415.0,66414.0,0.12010669]
[1729713967715,0.07537,66415.0,66414.0,0.04473569]
[1729713967911,0.07537,66415.0,66414.0,0.12010669]
[1729713968116,0.075366,66420.0,66419.0,0.075365]
[1729713969025,0.245366,66420.0,66419.0,0.075365]
[1729713969430,0.50811884,66420.0,66419.0,0.075365]
[1729713969717,0.28231942,66420.0,66412.0,0.1208]
[1729713969924,0.13543103,66413.0,66412.0,0.196174]
[1729713970424,0.24775045,66413.0,66412.0,0.196174]
[1729713970618,0.11231942,66413.0,66412.0,0.196174]
[1729713971219,0.075369,66416.0,66412.0,0.1208]
[1729713971420,0.075369,66416.0,66415.0,0.07537]
[1729713971621,0.27212479,66416.0,66415.0,0.07537]
[1729713971822,0.33816774,66416.0,66415.0,0.07537]
[1729713972025,0.26279874,66416.0,66415.0,0.07537]
[1729713972323,0.075363,66422.0,66421.0,0.07536]
[1729713974227,0.18290109,66429.0,66420.0,0.18323676]
[1729713974228,0.16570956,66423.0,66420.0,0.18323676]
[1729713974532,0.11230603,66422.0,66421.0,0.075363]
[1729713974918,0.18766803,66422.0,66421.0,0.075363]
[1729713975527,0.35766803,66422.0,66421.0,0.075363]
[1729713976529,0.075367,66418.0,66417.0,0.075368]
[1729713976929,0.18767303,66418.0,66417.0,0.075368]
[1729713978925,0.075374,66415.0,66414.0,0.07537]
[1729713979117,0.075376,66412.0,66411.0,0.075374]
[1729713979320,0.32856277,66412.0,66411.0,0.075374]
[1729713979631,0.18768203,66412.0,66411.0,0.075374]
[1729713980118,0.33833018,66412.0,66411.0,0.075374]
[1729713980418,0.18768203,66412.0,66411.0,0.075374]
[1729713980831,0.075376,66412.0,66411.0,0.075374]
[1729713983337,0.245376,66412.0,66411.0,0.075374]
[1729713983526,0.245376,66412.0,66408.0,0.04478872]
[1729713983728,0.245376,66412.0,66405.0,0.04478872]
[1729713983930,0.17,66406.0,66404.0,0.075383]
[1729713984129,0.075382,66405.0,66404.0,0.075383]
[1729713985631,0.17,66406.0,66400.0,0.075386]
[1729713985632,0.075388,66401.0,66400.0,0.075386]
[1729713985937,0.075388,66401.0,66396.0,0.07539]
[1729713985938,0.075391,66397.0,66396.0,0.07539]
[1729713986937,0.245391,66397.0,66396.0,0.07539]
[1729713987139,0.075396,66393.0,66392.0,0.075396]
[1729713987336,0.245396,66393.0,66392.0,0.075396]
[1729713987843,0.17,66393.0,66392.0,0.075396]
[1729713989234,0.17,66393.0,66392.0,0.1201703]
[1729713990237,0.17,66393.0,66392.0,0.075396]
[1729713990544,0.245395,66393.0,66392.0,0.075396]
[1729713991945,0.075395,66393.0,66392.0,0.075396]
[1729713992239,0.245392,66396.0,66395.0,0.075393]
[1729713993632,0.13559885,66437.0,66395.0,0.075393]
[1729713993633,0.075384,66404.0,66402.0,0.075385]
[1729713993837,0.17,66404.0,66398.0,0.075389]
[1729713994039,0.245388,66399.0,66398.0,0.075389]
[1729713995941,0.27451804,66399.0,66398.0,0.075389]
[1729713997142,0.245388,66399.0,66398.0,0.075389]
[1729713997641,0.27451859,66399.0,66398.0,0.075389]
[1729713997841,0.27451791,66399.0,66398.0,0.075389]
[1729713998048,0.245388,66399.0,66398.0,0.075389]
[1729713999457,0.245385,66403.0,66402.0,0.075385]
[1729713999644,0.27451463,66403.0,66402.0,0.075385]
[1729713999841,0.02912963,66403.0,66402.0,0.075385]
[1729714000042,0.075376,66411.0,66410.0,0.075376]
[1729714000246,0.10450335,66411.0,66410.0,0.075376]
[1729714000449,0.14142851,66411.0,66410.0,0.075376]
[1729714000749,0.02912121,66411.0,66410.0,0.17]
[1729714000951,0.1252,66424.0,66410.0,0.17]
[1729714001253,0.200561,66424.0,66423.0,0.245361]
[1729714001449,0.200561,66424.0,66423.0,0.075361]
[1729714001450,0.22968201,66424.0,66423.0,0.075361]
[1729714001848,0.22967786,66424.0,66423.0,0.245361]
[1729714002848,0.200561,66424.0,66423.0,0.245361]
[1729714003652,0.075348,66435.0,66430.0,0.075353]
[1729714003964,0.075347,66436.0,66430.0,0.245353]
[1729714004455,0.075343,66440.0,66430.0,0.245353]
[1729714004658,0.1168,66441.0,66430.0,0.245353]
[1729714005052,0.075338,66444.0,66430.0,0.245353]
[1729714005854,0.075331,66450.0,66449.0,0.075331]
[1729714006054,0.1168,66451.0,66450.0,0.075331]
[1729714006256,0.075334,66447.0,66442.0,0.17]
[1729714006966,0.075334,66447.0,66446.0,0.075335]
[1729714009352,0.17,66466.0,66446.0,0.17]
[1729714009555,0.075325,66456.0,66453.0,0.075326]
[1729714009861,0.075325,66456.0,66454.0,0.075326]
[1729714010056,0.075325,66456.0,66455.0,0.075325]
[1729714010564,0.07532,66460.0,66459.0,0.07532]
[1729714010754,0.075324,66456.0,66455.0,0.075324]
[1729714010957,0.28222322,66456.0,66449.0,0.075332]
[1729714011266,0.13450817,66454.0,66453.0,0.075327]
[1729714011466,0.14133157,66454.0,66453.0,0.075327]
[1729714011664,0.18758298,66454.0,66453.0,0.075327]
[1729714012165,0.14133157,66454.0,66453.0,0.075327]
[1729714012762,0.06600557,66454.0,66453.0,0.075327]
[1729714015362,0.02910635,66454.0,66453.0,0.075327]
[1729714016161,0.03689814,66454.0,66452.0,0.17]
[1729714016470,0.02910635,66453.0,66452.0,0.245328]
[1729714017065,0.10443316,66453.0,66448.0,0.18320018]
[1729714017260,0.02910616,66452.0,66451.0,0.075329]
[1729714017566,0.02910562,66452.0,66451.0,0.075329]
[1729714017957,0.075329,66452.0,66451.0,0.075329]
[1729714018956,0.245329,66452.0,66451.0,0.075329]
[1729714019162,0.075329,66452.0,66451.0,0.075329]
[1729714020370,0.1283,66461.0,66456.0,0.075323]
[1729714020558,0.075323,66457.0,66456.0,0.075323]
[1729714021470,0.21653909,66461.0,66460.0,0.075319]
[1729714025269,0.17,66473.0,66460.0,0.17]
[1729714025478,0.189714,66465.0,66464.0,0.17]
[1729714025667,0.075341,66441.0,66440.0,0.075341]
[1729714026176,0.075338,66444.0,66443.0,0.075338]
[1729714028163,0.2345,66455.0,66441.0,0.34]
[1729714028369,0.192825,66455.0,66454.0,0.17]
[1729714028570,0.2875,66455.0,66453.0,0.075326]
[1729714028772,0.075326,66454.0,66453.0,0.075326]
[1729714032174,0.2875,66455.0,66446.0,0.17]
[1729714032375,0.17,66455.0,66454.0,0.075326]
[1729714032572,0.245325,66455.0,66454.0,0.075326]
[1729714033079,0.35757932,66455.0,66454.0,0.04973217]
[1729714033273,0.41162194,66455.0,66454.0,0.04973217]
[1729714035883,0.16629694,66455.0,66454.0,0.04973217]
[1729714036084,0.11225432,66455.0,66454.0,0.04973217]
[1729714036581,0.075323,66457.0,66449.0,0.245332]
[1729714036883,0.1122537,66456.0,66455.0,0.075325]
[1729714038983,0.36474217,66456.0,66455.0,0.075325]
[1729714039182,0.2822537,66456.0,66455.0,0.075325]
[1729714039488,0.33629632,66456.0,66455.0,0.075325]
[1729714039692,0.33629632,66456.0,66455.0,0.08837178]
[1729714039991,0.44790575,66456.0,66455.0,0.08837178]
[1729714040391,0.27790575,66456.0,66455.0,0.08837178]
[1729714040589,0.1122537,66456.0,66455.0,0.08837178]
[1729714041090,0.16565205,66458.0,66455.0,0.01304678]
[1729714041280,0.24532,66460.0,66452.0,0.17]
[1729714041485,0.24532,66460.0,66459.0,0.07532]
[1729714043291,0.075333,66448.0,66447.0,0.00116]
[1729714043487,0.17,66448.0,66442.0,0.075339]
[1729714043685,0.17,66444.0,66434.0,0.2147312]
[1729714043886,0.17,66435.0,66433.0,0.0447312]
[1729714044182,0.17,66435.0,66434.0,0.075348]
[1729714044387,0.17,66443.0,66434.0,0.245348]